bitfinex-derivatives/quotes_SOLF0:USTF0_20251026
["timestamp","ask_amount","ask_price","bid_price","bid_amount"]
[1761452851872,3.92495799,193.35,193.28,2.77]
[1761452852067,3.92495799,193.34,193.28,2.77]
[1761452852372,3.92495799,193.33,193.28,2.77]
[1761452852573,3.92495799,193.32,193.28,2.77]
[1761452852870,4.8310735,193.37,193.28,2.77]
[1761452852871,4.49049661,193.36,193.28,2.77]
[1761452853072,8.41580968,193.35,193.28,2.77]
[1761452853270,3.92531307,193.34,193.28,2.77]
[1761452853483,3.92531307,193.33,193.28,2.77]
[1761452853666,3.92531307,193.32,193.28,2.77]
[1761452853866,4.8310735,193.37,193.28,2.77]
[1761452854070,8.41680527,193.36,193.28,2.77]
[1761452854271,8.41680527,193.35,193.28,2.77]
[1761452854472,3.92577852,193.34,193.28,2.77]
[1761452854679,3.92577852,193.33,193.28,2.77]
[1761452854972,3.92577852,193.32,193.28,2.77]
[1761452855176,4.8310735,193.36,193.28,2.77]
[1761452855374,8.41805625,193.35,193.28,2.77]
[1761452855576,3.92622237,193.34,193.28,2.77]
[1761452855776,3.92622237,193.33,193.28,2.77]
[1761452855980,3.92622237,193.32,193.28,2.77]
[1761452856185,4.8310735,193.37,193.28,2.77]
[1761452856378,8.41725325,193.36,193.28,2.77]
[1761452856678,8.41725325,193.35,193.28,2.77]
[1761452856880,3.92598924,193.34,193.28,2.77]
[1761452857077,3.92598924,193.33,193.28,2.77]
[1761452857380,3.92598924,193.32,193.28,2.77]
[1761452857571,4.8310735,193.37,193.28,2.77]
[1761452857872,8.41683188,193.36,193.28,2.77]
[1761452858166,8.41683188,193.35,193.28,2.77]
[1761452858365,3.92579274,193.34,193.28,2.77]
[1761452858569,3.92579274,193.33,193.28,2.77]
[1761452858776,3.92579274,193.32,193.28,2.77]
[1761452858978,4.8310735,193.37,193.28,2.77]
[1761452859286,8.41648319,193.36,193.28,2.77]
[1761452859471,8.41648319,193.35,193.28,2.77]
[1761452859777,3.92562957,193.34,193.28,2.77]
[1761452859977,3.92562957,193.33,193.28,2.77]
[1761452860177,4.48003561,193.36,193.28,2.77]
[1761452860377,3.87533506,193.35,193.28,2.77]
[1761452860681,3.87533506,193.34,193.28,2.77]
[1761452860984,3.87533506,193.33,193.28,2.77]
[1761452861172,4.48003561,193.36,193.28,2.77]
[1761452861472,3.87521566,193.35,193.28,2.77]
[1761452861672,3.87521566,193.34,193.28,2.77]
[1761452861874,3.87521566,193.33,193.28,2.77]
[1761452862080,4.48003561,193.36,193.28,2.77]
[1761452862381,3.87520277,193.35,193.28,2.77]
[1761452862576,3.87520277,193.34,193.28,2.77]
[1761452862775,3.87520277,193.33,193.28,2.77]
[1761452862979,4.48003561,193.36,193.28,2.77]
[1761452863280,3.87512056,193.35,193.28,2.77]
[1761452863474,3.87512056,193.34,193.28,2.77]
[1761452863675,3.87512056,193.33,193.28,2.77]
[1761452863871,4.48003561,193.36,193.28,2.77]
[1761452864076,3.87503914,193.35,193.28,2.77]
[1761452864276,3.87503914,193.34,193.28,2.77]
[1761452864583,3.87503914,193.33,193.28,2.77]
[1761452864880,4.48003561,193.36,193.28,2.77]
[1761452865082,3.87494608,193.35,193.28,2.77]
[1761452865381,3.87494608,193.34,193.28,2.77]
[1761452865681,3.87494608,193.33,193.28,2.77]
[1761452865876,4.48003561,193.36,193.28,2.77]
[1761452866071,3.87489989,193.35,193.28,2.77]
[1761452866272,3.87489989,193.34,193.28,2.77]
[1761452866475,3.87489989,193.33,193.28,2.77]
[1761452866682,4.48003561,193.36,193.28,2.77]
[1761452866882,3.87483448,193.35,193.28,2.77]
[1761452867187,3.87483448,193.34,193.28,2.77]
[1761452867376,3.87483448,193.33,193.28,2.77]
[1761452867577,4.48003561,193.36,193.28,2.77]
[1761452867774,3.87478412,193.35,193.28,2.77]
[1761452868070,3.87478412,193.34,193.28,2.77]
[1761452868274,3.87478412,193.33,193.28,2.77]
[1761452868478,4.48003561,193.36,193.28,2.77]
[1761452868677,3.87475037,193.35,193.28,2.77]
[1761452868876,3.87475037,193.34,193.28,2.77]
[1761452869174,3.87475037,193.33,193.28,2.77]
[1761452869474,4.48003561,193.36,193.28,2.77]
[1761452869674,3.87473116,193.35,193.28,2.77]
[1761452869885,3.87473116,193.34,193.28,2.77]
[1761452870077,3.87473116,193.33,193.28,2.77]
[1761452870390,4.48003561,193.36,193.28,2.77]
[1761452870682,3.87472718,193.35,193.28,2.77]
[1761452870883,3.87472718,193.34,193.28,2.77]
[1761452871081,3.87472718,193.33,193.28,2.77]
[1761452871281,4.48003561,193.36,193.28,2.77]
[1761452871484,3.87469844,193.35,193.28,2.77]
[1761452871685,3.87469844,193.34,193.28,2.77]
[1761452871985,3.87469844,193.33,193.28,2.77]
[1761452872186,4.48003561,193.36,193.28,2.77]
[1761452872484,3.87467885,193.35,193.28,2.77]
[1761452872690,3.87467885,193.34,193.28,2.77]
[1761452872983,3.87467885,193.33,193.28,2.77]
[1761452873184,4.48003561,193.36,193.28,2.77]
[1761452873386,3.87466946,193.35,193.28,2.77]
[1761452873587,3.87466946,193.34,193.28,2.77]
[1761452873783,3.87466946,193.33,193.28,2.77]
[1761452874081,4.48003561,193.36,193.28,2.77]
[1761452874383,3.87466946,193.35,193.28,2.77]
[1761452874680,3.87466946,193.34,193.28,2.77]
[1761452874879,3.87466946,193.33,193.28,2.77]
[1761452875187,4.48003561,193.36,193.28,2.77]
[1761452875488,3.87468294,193.35,193.28,2.77]
[1761452875786,3.87468294,193.34,193.28,2.77]
[1761452875986,3.87468294,193.33,193.28,2.77]
[1761452876285,4.48003561,193.36,193.28,2.77]
[1761452876585,3.87470784,193.35,193.28,2.77]
[1761452876781,3.87470784,193.34,193.28,2.77]
[1761452876982,3.87470784,193.33,193.28,2.77]
[1761452877184,4.48003561,193.36,193.28,2.77]
[1761452877487,3.87474394,193.35,193.28,2.77]
[1761452877688,3.87474394,193.34,193.28,2.77]
[1761452877877,3.87474394,193.33,193.28,2.77]
[1761452878082,4.48003561,193.36,193.28,2.77]
[1761452878387,3.87474394,193.35,193.28,2.77]
[1761452878580,3.87474394,193.34,193.28,2.77]
[1761452878780,3.87474394,193.33,193.28,2.77]
[1761452879079,4.48003561,193.36,193.28,2.77]
[1761452879285,3.87479159,193.35,193.28,2.77]
[1761452879583,3.87479159,193.34,193.28,2.77]
[1761452879785,3.87479159,193.33,193.28,2.77]
[1761452879985,4.48003561,193.36,193.28,2.77]
[1761452880285,3.87485278,193.35,193.28,2.77]
[1761452880486,3.87485278,193.34,193.28,2.77]
[1761452880682,3.87485278,193.33,193.28,2.77]
[1761452880882,4.48003561,193.36,193.28,2.77]
[1761452881082,3.87487274,193.35,193.28,2.77]
[1761452881292,3.87487274,193.34,193.28,2.77]
[1761452881487,3.87487274,193.33,193.28,2.77]
[1761452881687,4.48003561,193.36,193.28,2.77]
[1761452881888,3.87495335,193.35,193.28,2.77]
[1761452882087,3.87495335,193.34,193.28,2.77]
[1761452882289,4.48003561,193.36,193.28,2.77]
[1761452882290,3.87495335,193.33,193.28,2.77]
[1761452882590,4.48003561,193.36,193.28,2.77]
[1761452882786,3.87504686,193.35,193.28,2.77]
[1761452882988,3.87504686,193.34,193.28,2.77]
[1761452883287,3.87504686,193.33,193.28,2.77]
[1761452883487,4.48003561,193.36,193.28,2.77]
[1761452883678,3.8751538,193.35,193.28,2.77]
[1761452883885,3.8751538,193.34,193.28,2.77]
[1761452884079,3.8751538,193.33,193.28,2.77]
[1761452884286,4.48003561,193.36,193.28,2.77]
[1761452884494,3.87527482,193.35,193.28,2.77]
[1761452884691,3.87527482,193.34,193.28,2.77]
[1761452884990,3.87527482,193.33,193.28,2.77]
[1761452885192,4.48003561,193.36,193.28,2.77]
[1761452885392,3.87541068,193.35,193.28,2.77]
[1761452885594,3.87541068,193.34,193.28,2.77]
[1761452885790,3.87541068,193.33,193.28,2.77]
[1761452886094,4.48003561,193.36,193.28,2.77]
[1761452886293,3.87547067,193.35,193.28,2.77]
[1761452886593,3.87547067,193.34,193.28,2.77]
[1761452886793,3.87547067,193.33,193.28,2.77]
[1761452886996,4.48003561,193.36,193.28,2.77]
[1761452887192,8.35559856,193.35,193.28,2.77]
[1761452887394,3.87556295,193.34,193.28,2.77]
[1761452887594,4.8310735,193.37,193.28,2.77]
[1761452887595,3.87556295,193.33,193.28,2.77]
[1761452887796,4.48037071,193.35,193.28,2.77]
[1761452888000,3.87573046,193.34,193.28,2.77]
[1761452888300,3.87573046,193.33,193.28,2.77]
[1761452888496,4.8310735,193.37,193.28,2.77]
[1761452888696,8.35650236,193.36,193.28,2.77]
[1761452888887,8.35650236,193.35,193.28,2.77]
[1761452889091,3.87591735,193.34,193.28,2.77]
[1761452889392,3.87591735,193.33,193.28,2.77]
[1761452889591,3.87591735,193.32,193.28,2.77]
[1761452889892,4.8310735,193.37,193.28,2.77]
[1761452890097,8.34965683,193.36,193.28,2.77]
[1761452890300,8.34965683,193.35,193.28,2.77]
[1761452890501,3.87486267,193.34,193.28,2.77]
[1761452890799,3.87486267,193.33,193.28,2.77]
[1761452890999,3.87486267,193.32,193.28,2.77]
[1761452891193,4.8310735,193.36,193.28,2.77]
[1761452891387,8.35274593,193.35,193.28,2.77]
[1761452891591,3.87628271,193.34,193.28,2.77]
[1761452891792,3.87628271,193.33,193.28,2.77]
[1761452892091,4.8310735,193.36,193.28,2.77]
[1761452892092,3.87628271,193.32,193.28,2.77]
[1761452892401,4.47650016,193.35,193.28,2.77]
[1761452892699,8.35535156,193.34,193.28,2.77]
[1761452892898,3.87740593,193.33,193.28,2.77]
[1761452893101,3.87740593,193.32,193.28,2.77]
[1761452893396,3.87740593,193.31,193.28,2.77]
[1761452893597,4.8310735,193.36,193.28,2.77]
[1761452893798,8.35650946,193.35,193.28,2.77]
[1761452893997,8.35650946,193.34,193.28,2.77]
[1761452894191,3.87800139,193.33,193.28,2.77]
[1761452894392,3.87800139,193.32,193.28,2.77]
[1761452894592,3.87800139,193.31,193.28,2.77]
[1761452894899,4.8310735,193.36,193.29,2.64]
[1761452895095,8.35843682,193.35,193.29,2.64]
[1761452895295,8.35843682,193.34,193.29,2.64]
[1761452895498,3.87889588,193.33,193.29,2.64]
[1761452895696,3.87889588,193.32,193.29,2.64]
[1761452895893,3.87889588,193.31,193.29,2.64]
[1761452896092,4.8310735,193.36,193.29,2.64]
[1761452896293,8.35834495,193.35,193.29,2.64]
[1761452896493,8.35834495,193.34,193.29,2.64]
[1761452896798,3.87885613,193.33,193.29,2.64]
[1761452896998,3.87885613,193.32,193.29,2.64]
[1761452897196,3.87885613,193.31,193.29,2.64]
[1761452897396,4.8310735,193.36,193.29,2.64]
[1761452897599,8.35822503,193.35,193.29,2.64]
[1761452897801,8.35822503,193.34,193.29,2.64]
[1761452897998,3.87879712,193.33,193.29,2.64]
[1761452898298,3.87879712,193.32,193.29,2.64]
[1761452898500,3.87879712,193.31,193.29,2.64]
[1761452898799,4.8310735,193.36,193.29,2.64]
[1761452898988,8.35827066,193.35,193.29,2.64]
[1761452899193,8.35827066,193.34,193.29,2.64]
[1761452899502,3.87880394,193.33,193.29,2.64]
[1761452899799,3.87880394,193.32,193.29,2.64]
[1761452900099,3.87880394,193.31,193.29,2.64]
[1761452900300,4.8310735,193.36,193.29,2.64]
[1761452900502,8.35784013,193.35,193.29,2.64]
[1761452900700,8.35784013,193.34,193.29,2.64]
[1761452900902,3.87861855,193.33,193.29,2.64]
[1761452901103,3.87861855,193.32,193.29,2.64]
[1761452901297,3.87861855,193.31,193.29,2.64]
[1761452901596,4.8310735,193.36,193.29,2.64]
[1761452901794,8.35777482,193.35,193.29,2.64]
[1761452901994,8.35777482,193.34,193.29,2.64]
[1761452902206,3.87858896,193.33,193.29,2.64]
[1761452902402,3.87858896,193.32,193.29,2.64]
[1761452902606,3.87858896,193.31,193.29,2.64]
[1761452902901,4.8310735,193.36,193.29,2.64]
[1761452903102,8.35771509,193.35,193.29,2.64]
[1761452903303,8.35771509,193.34,193.29,2.64]
[1761452903503,3.8785614,193.33,193.29,2.64]
[1761452903705,3.8785614,193.32,193.29,2.64]
[1761452903903,3.8785614,193.31,193.29,2.64]
[1761452904205,4.8310735,193.36,193.29,2.64]
[1761452904404,8.35762823,193.35,193.29,2.64]
[1761452904593,8.35762823,193.34,193.29,2.64]
[1761452904797,3.8785217,193.33,193.29,2.64]
[1761452905004,3.8785217,193.32,193.29,2.64]
[1761452905204,3.8785217,193.31,193.29,2.64]
[1761452905406,4.8310735,193.36,193.29,2.64]
[1761452905605,8.35759189,193.35,193.29,2.64]
[1761452905903,8.35759189,193.34,193.29,2.64]
[1761452906102,3.87850519,193.33,193.29,2.64]
[1761452906304,3.87850519,193.32,193.29,2.64]
[1761452906503,3.87850519,193.31,193.29,2.64]
[1761452906703,4.8310735,193.36,193.29,2.64]
[1761452906907,8.35726698,193.35,193.29,2.64]
[1761452907108,8.35726698,193.34,193.29,2.64]
[1761452907303,3.87838376,193.33,193.29,2.64]
[1761452907495,3.87838376,193.32,193.29,2.64]
[1761452907701,4.47888191,193.34,193.29,2.64]
[1761452907901,3.87838239,193.33,193.29,2.64]
[1761452908197,3.87838239,193.32,193.29,2.64]
[1761452908496,4.47888191,193.34,193.29,2.64]
[1761452908699,3.87838071,193.33,193.29,2.64]
[1761452908995,3.87838071,193.32,193.29,2.64]
[1761452909195,4.47888022,193.34,193.29,2.64]
[1761452909400,3.87837937,193.33,193.29,2.64]
[1761452909601,3.87837937,193.32,193.29,2.64]
[1761452909804,4.47887892,193.34,193.29,2.64]
[1761452909996,3.87837937,193.33,193.29,2.64]
[1761452910211,3.87837937,193.32,193.29,2.64]
[1761452910404,4.47887892,193.34,193.29,2.64]
[1761452910604,3.87837731,193.33,193.29,2.64]
[1761452910809,3.87837731,193.32,193.29,2.64]
[1761452911008,4.47887681,193.34,193.29,2.64]
[1761452911210,3.87837731,193.33,193.29,2.64]
[1761452911410,3.87837731,193.32,193.29,2.64]
[1761452911614,4.47887675,193.34,193.29,2.64]
[1761452911813,3.87837669,193.33,193.29,2.64]
[1761452912012,4.8310735,193.36,193.29,2.64]
[1761452912013,3.87837669,193.32,193.29,2.64]
[1761452912213,4.47887639,193.34,193.29,2.64]
[1761452912517,3.87837682,193.33,193.29,2.64]
[1761452912813,3.87837682,193.32,193.29,2.64]
[1761452913003,4.478878,193.34,193.29,2.64]
[1761452913207,3.87837682,193.33,193.29,2.64]
[1761452913406,3.87837682,193.32,193.29,2.64]
[1761452913612,4.47887592,193.34,193.29,2.64]
[1761452913813,3.87837553,193.33,193.29,2.64]
[1761452914111,3.87837553,193.32,193.29,2.64]
[1761452914310,4.8310735,193.36,193.29,2.64]
[1761452914311,4.47887469,193.34,193.29,2.64]
[1761452914511,3.87837455,193.33,193.29,2.64]
[1761452914711,3.87837455,193.32,193.29,2.64]
[1761452914913,4.4788746,193.34,193.29,2.64]
[1761452915113,3.87837455,193.33,193.29,2.64]
[1761452915315,3.87837455,193.32,193.29,2.64]
[1761452915514,4.47887206,193.34,193.29,2.64]
[1761452915716,3.87837287,193.33,193.29,2.64]
[1761452915916,3.87837287,193.32,193.29,2.64]
[1761452916116,4.47887329,193.34,193.29,2.64]
[1761452916319,3.87837957,193.33,193.29,2.64]
[1761452916517,3.87837957,193.32,193.29,2.64]
[1761452916718,4.47887119,193.34,193.29,2.64]
[1761452916916,3.87837227,193.33,193.29,2.64]
[1761452917116,3.87837227,193.32,193.29,2.64]
[1761452917316,3.87837227,193.31,193.29,2.64]
[1761452917621,4.8310735,193.36,193.29,2.64]
[1761452917824,8.3576916,193.35,193.29,2.64]
[1761452918024,8.3576916,193.34,193.29,2.64]
[1761452918226,3.87853649,193.33,193.29,2.64]
[1761452918427,3.87853649,193.32,193.29,2.64]
[1761452918724,3.87853649,193.31,193.29,2.64]
[1761452918924,4.8310735,193.35,193.29,2.64]
[1761452919226,8.35773519,193.34,193.29,2.64]
[1761452919420,3.87854232,193.33,193.29,2.64]
[1761452919619,3.87854232,193.32,193.29,2.64]
[1761452919818,3.87854232,193.31,193.29,2.64]
[1761452920023,4.49142978,193.34,193.29,2.64]
[1761452920222,3.88324508,193.33,193.29,2.64]
[1761452920421,3.88324508,193.32,193.29,2.64]
[1761452920626,3.88324508,193.31,193.29,2.64]
[1761452920827,4.49134045,193.34,193.29,2.64]
[1761452921019,3.88316778,193.33,193.29,2.64]
[1761452921221,3.88316778,193.32,193.29,2.64]
[1761452921421,3.88316778,193.31,193.29,2.64]
[1761452921623,4.49126167,193.34,193.29,2.64]
[1761452921917,3.88309962,193.33,193.29,2.64]
[1761452922120,3.88309962,193.32,193.29,2.64]
[1761452922328,3.88309962,193.31,193.29,2.64]
[1761452922520,4.49119404,193.34,193.29,2.64]
[1761452922725,3.88304262,193.33,193.29,2.64]
[1761452922924,3.88304262,193.32,193.29,2.64]
[1761452923123,3.88304262,193.31,193.29,2.64]
[1761452923318,4.49113565,193.34,193.29,2.64]
[1761452923518,3.88299194,193.33,193.29,2.64]
[1761452923719,3.88299194,193.32,193.29,2.64]
[1761452923931,3.88299194,193.31,193.29,2.64]
[1761452924131,4.49113565,193.34,193.29,2.64]
[1761452924327,3.88294922,193.33,193.29,2.64]
[1761452924524,3.88294922,193.32,193.29,2.64]
[1761452924724,3.88294922,193.31,193.29,2.64]
[1761452925034,4.49108508,193.35,193.29,2.64]
[1761452925233,8.3740343,193.34,193.29,2.64]
[1761452925431,3.88294922,193.33,193.29,2.64]
[1761452925734,3.88294922,193.32,193.29,2.64]
[1761452925929,3.88294922,193.31,193.29,2.64]
[1761452926129,4.8310735,193.35,193.29,2.64]
[1761452926329,8.3738912,193.34,193.29,2.64]
[1761452926529,3.88288177,193.33,193.29,2.64]
[1761452926834,3.88288177,193.32,193.29,2.64]
[1761452927027,3.88288177,193.31,193.29,2.64]
[1761452927228,4.8310735,193.36,193.29,2.64]
[1761452927536,8.37382618,193.35,193.29,2.64]
[1761452927729,8.37382618,193.34,193.29,2.64]
[1761452927928,3.88285174,193.33,193.29,2.64]
[1761452928237,3.88285174,193.32,193.29,2.64]
[1761452928433,3.88285174,193.31,193.29,2.64]
[1761452928636,4.8310735,193.36,193.29,2.64]
[1761452928935,8.373776,193.35,193.29,2.64]
[1761452929135,8.373776,193.34,193.29,2.64]
[1761452929336,3.8828282,193.33,193.29,2.64]
[1761452929636,3.8828282,193.32,193.29,2.64]
[1761452929834,3.8828282,193.31,193.29,2.64]
[1761452930034,4.8310735,193.36,193.29,2.64]
[1761452930230,8.37373068,193.35,193.29,2.64]
[1761452930430,8.37373068,193.34,193.29,2.64]
[1761452930627,3.88280729,193.33,193.29,2.64]
[1761452930831,3.88280729,193.32,193.29,2.64]
[1761452931039,3.88280729,193.31,193.29,2.64]
[1761452931339,4.8310735,193.36,193.29,2.64]
[1761452931636,8.37367568,193.35,193.29,2.64]
[1761452931837,8.37367568,193.34,193.29,2.64]
[1761452932036,3.88278158,193.33,193.29,2.64]
[1761452932238,3.88278158,193.32,193.29,2.64]
[1761452932438,3.88278158,193.31,193.29,2.64]
[1761452932636,4.8310735,193.36,193.29,2.64]
[1761452932840,8.37366051,193.35,193.29,2.64]
[1761452933040,8.37366051,193.34,193.29,2.64]
[1761452933242,3.88277462,193.33,193.29,2.64]
[1761452933440,3.88277462,193.32,193.29,2.64]
[1761452933641,3.88277462,193.31,193.29,2.64]
[1761452933837,4.8310735,193.36,193.29,2.64]
[1761452934037,8.37365886,193.35,193.29,2.64]
[1761452934237,8.37365886,193.34,193.29,2.64]
[1761452934438,3.88277373,193.33,193.29,2.64]
[1761452934639,3.88277373,193.32,193.29,2.64]
[1761452934843,3.88277373,193.31,193.29,2.64]
[1761452935047,4.49088988,193.33,193.29,2.64]
[1761452935244,3.88288607,193.32,193.29,2.64]
[1761452935435,3.88288607,193.31,193.29,2.64]
[1761452935641,4.8310735,193.35,193.29,2.64]
[1761452935841,8.37390284,193.34,193.29,2.64]
[1761452936042,3.88285743,193.33,193.29,2.64]
[1761452936242,3.88285743,193.32,193.29,2.64]
[1761452936438,3.88285743,193.31,193.29,2.64]
[1761452936649,4.49098893,193.34,193.29,2.64]
[1761452936851,3.8828088,193.33,193.29,2.64]
[1761452937042,3.8828088,193.32,193.29,2.64]
[1761452937241,3.8828088,193.31,193.29,2.64]
[1761452937437,4.49094365,193.34,193.29,2.64]
[1761452937642,3.88277072,193.33,193.29,2.64]
[1761452937849,3.88277072,193.32,193.29,2.64]
[1761452938054,3.88277072,193.31,193.29,2.64]
[1761452938243,4.49094365,193.34,193.29,2.64]
[1761452938443,3.88270569,193.33,193.29,2.64]
[1761452938643,3.88270569,193.32,193.29,2.64]
[1761452938959,3.88270569,193.32,193.23,62.36]
[1761452938960,8.3739279,193.31,193.23,2.71]
[1761452939244,8.3739279,193.3,193.23,2.71]
[1761452939445,4.8310735,193.32,193.23,2.71]
[1761452939446,3.88270569,193.29,193.23,2.71]
[1761452939641,3.88270569,193.28,193.23,2.71]
[1761452939839,4.48902861,193.3,193.23,2.71]
[1761452940044,3.88087097,193.29,193.23,2.71]
[1761452940247,3.88087097,193.28,193.23,2.71]
[1761452940446,4.8310735,193.32,193.23,2.71]
[1761452940753,8.36980609,193.31,193.23,2.71]
[1761452941050,3.88082816,193.3,193.23,2.71]
[1761452941255,3.88082816,193.29,193.23,2.71]
[1761452941443,3.88082816,193.28,193.23,2.71]
[1761452941643,4.8310735,193.33,193.23,2.71]
[1761452941843,8.36691271,193.32,193.23,2.71]
[1761452942054,8.36691271,193.31,193.23,4.2169215]
[1761452942247,3.87948075,193.3,193.24,2.79]
[1761452942453,3.87948075,193.29,193.24,2.79]
[1761452942757,3.87948075,193.28,193.24,2.79]
[1761452943053,4.8310735,193.33,193.24,2.79]
[1761452943249,8.36471191,193.32,193.24,2.79]
[1761452943456,8.36471191,193.31,193.24,2.79]
[1761452943752,3.8784604,193.3,193.24,2.79]
[1761452943965,3.8784604,193.29,193.24,2.79]
[1761452944148,3.8784604,193.28,193.24,2.79]
[1761452944450,4.8310735,193.33,193.24,2.79]
[1761452944652,8.36136423,193.32,193.24,2.79]
[1761452944851,3.87690865,193.31,193.24,2.79]
[1761452945051,3.87690865,193.3,193.24,2.79]
[1761452945252,3.87690865,193.29,193.24,2.79]
[1761452945454,4.48445558,193.32,193.24,2.79]
[1761452945648,3.87629729,193.31,193.24,2.79]
[1761452945849,3.87629729,193.3,193.24,2.79]
[1761452946050,3.87629729,193.29,193.24,2.79]
[1761452946249,4.48374843,193.32,193.24,2.79]
[1761452946448,3.87576234,193.31,193.24,2.79]
[1761452946645,3.87576234,193.3,193.24,2.79]
[1761452946850,3.87576234,193.29,193.24,2.79]
[1761452947051,4.48374843,193.32,193.24,2.79]
[1761452947358,3.87576234,193.31,193.24,2.79]
[1761452947556,3.87576234,193.3,193.24,2.79]
[1761452947749,3.87576234,193.29,193.24,2.79]
[1761452947950,4.48374843,193.32,193.24,2.79]
[1761452948150,3.87529071,193.31,193.24,2.79]
[1761452948352,3.87529071,193.3,193.24,2.79]
[1761452948552,3.87529071,193.29,193.24,2.79]
[1761452948859,4.48374843,193.32,193.24,2.79]
[1761452949157,3.87487455,193.31,193.24,2.79]
[1761452949357,3.87487455,193.3,193.24,2.79]
[1761452949553,3.87487455,193.29,193.24,2.79]
[1761452949758,4.44577334,193.32,193.24,2.79]
[1761452949956,3.88411727,193.31,193.24,2.79]
[1761452950157,3.88411727,193.3,193.24,2.79]
[1761452950462,3.88411727,193.29,193.24,2.79]
[1761452950662,4.8310735,193.34,193.24,2.79]
[1761452950853,8.32919458,193.33,193.24,2.79]
[1761452951055,3.88379261,193.32,193.24,2.79]
[1761452951255,3.88379261,193.31,193.24,2.79]
[1761452951464,3.88379261,193.3,193.24,2.79]
[1761452951762,3.88379261,193.29,193.24,2.79]
[1761452951954,4.44540197,193.33,193.24,2.79]
[1761452952153,3.88350567,193.32,193.24,2.79]
[1761452952354,3.88350567,193.31,193.23,1.5069215]
[1761452952555,3.88350567,193.3,193.23,1.5069215]
[1761452952755,4.44540197,193.32,193.23,1.5069215]
[1761452952756,3.88350567,193.29,193.23,1.5069215]
[1761452952956,3.88350567,193.28,193.23,1.5069215]
[1761452953257,4.44540197,193.32,193.23,1.5069215]
[1761452953456,3.8828633,193.31,193.23,1.5069215]
[1761452953658,3.8828633,193.3,193.21,2.71]
[1761452953861,3.8828633,193.29,193.21,2.71]
[1761452954161,4.44540197,193.31,193.21,2.71]
[1761452954162,3.8828633,193.28,193.21,2.71]
[1761452954352,4.44540197,193.31,193.21,2.71]
[1761452954559,3.882462,193.3,193.21,2.71]
[1761452954760,3.882462,193.29,193.21,2.71]
[1761452954961,3.882462,193.28,193.21,2.71]
[1761452955161,4.44540197,193.31,193.21,2.71]
[1761452955368,3.88244759,193.3,193.21,2.71]
[1761452955560,3.88244759,193.29,193.21,2.71]
[1761452955760,3.88244759,193.28,193.21,2.71]
[1761452955960,1.5069215,193.3,193.21,2.71]
[1761452956162,3.88198306,193.29,193.21,2.71]
[1761452956363,3.88198306,193.28,193.21,2.71]
[1761452956563,1.5069215,193.3,193.21,2.71]
[1761452956869,3.88157652,193.29,193.21,2.71]
[1761452957069,3.88157652,193.28,193.21,2.71]
[1761452957269,4.44540197,193.31,193.21,2.71]
[1761452957471,3.88123953,193.3,193.21,2.71]
[1761452957669,3.88123953,193.29,193.21,2.71]
[1761452957870,3.88123953,193.28,193.21,2.71]
[1761452958168,4.44540197,193.31,193.21,2.71]
[1761452958370,3.88125699,193.3,193.21,2.71]
[1761452958569,3.88125699,193.29,193.21,2.71]
[1761452958868,3.88125699,193.28,193.21,2.71]
[1761452959068,4.44540197,193.31,193.21,2.71]
[1761452959268,3.88096324,193.3,193.21,2.71]
[1761452959461,3.88096324,193.29,193.21,2.71]
[1761452959662,3.88096324,193.28,193.21,2.71]
[1761452959872,4.44540197,193.31,193.21,2.71]